[Event "Early-Titled-Tuesday-Blitz-March-05-2024"]
[Site "Chess.com"]
[Date "2024.03.05"]
[Round "8"]
[White "StankovicIvan"]
[Black "LornerAcosta"]
[Result "0-1"]
[WhiteElo "2520"]
[BlackElo "2637"]
[TimeControl "180+1"]
[EndTime "9:31:02 PST"]
[Termination "LornerAcosta won by resignation"]

1. e4 {[%clk 0:03:00.9]} 1... c5 {[%clk 0:02:57.8]} 2. c4 {[%clk 0:03:00.8]}
2... Nc6 {[%clk 0:02:57.7]} 3. Nc3 {[%clk 0:03:00.7]} 3... e5 {[%clk 0:02:57.8]}
4. g3 {[%clk 0:03:00.9]} 4... d6 {[%clk 0:02:58.3]} 5. Bg2 {[%clk 0:03:01.5]}
5... g6 {[%clk 0:02:58.9]} 6. d3 {[%clk 0:03:01.8]} 6... Bg7 {[%clk 0:02:59.6]}
7. Nge2 {[%clk 0:03:02.4]} 7... h6 {[%clk 0:03:00.1]} 8. O-O {[%clk 0:03:01.8]}
8... Nge7 {[%clk 0:03:00.7]} 9. Rb1 {[%clk 0:03:02.3]} 9... Be6 {[%clk
0:03:00.9]} 10. a3 {[%clk 0:03:01.8]} 10... b6 {[%clk 0:02:56.8]} 11. Nd5 {[%clk
0:02:59.3]} 11... O-O {[%clk 0:02:53.2]} 12. b4 {[%clk 0:02:58.6]} 12... Qd7
{[%clk 0:02:33.5]} 13. b5 {[%clk 0:02:54.1]} 13... Nd4 {[%clk 0:02:31.8]} 14.
Nxd4 {[%clk 0:02:54.1]} 14... cxd4 {[%clk 0:02:31.2]} 15. a4 {[%clk 0:02:52.2]}
15... Nxd5 {[%clk 0:02:26.8]} 16. cxd5 {[%clk 0:02:50.1]} 16... Bh3 {[%clk
0:02:27.5]} 17. Bd2 {[%clk 0:02:48]} 17... Bxg2 {[%clk 0:02:26.7]} 18. Kxg2
{[%clk 0:02:48.1]} 18... f5 {[%clk 0:02:27.3]} 19. Rc1 {[%clk 0:02:44.2]} 19...
f4 {[%clk 0:02:25]} 20. f3 {[%clk 0:02:42.5]} 20... fxg3 {[%clk 0:02:24.2]} 21.
hxg3 {[%clk 0:02:41.9]} 21... a6 {[%clk 0:02:21.2]} 22. Qb3 {[%clk 0:02:33]}
22... axb5 {[%clk 0:02:20.9]} 23. axb5 {[%clk 0:02:30.5]} 23... Rfb8 {[%clk
0:01:49.4]} 24. Rc6 {[%clk 0:02:28.3]} 24... Bf8 {[%clk 0:01:50.1]} 25. Rfc1
{[%clk 0:02:25]} 25... Ra7 {[%clk 0:01:50.7]} 26. Bb4 {[%clk 0:02:12.5]} 26...
h5 {[%clk 0:01:34.8]} 27. R1c2 {[%clk 0:02:11.3]} 27... h4 {[%clk 0:01:33.2]}
28. gxh4 {[%clk 0:02:09.7]} 28... Rab7 {[%clk 0:01:15.9]} 29. Qc4 {[%clk
0:02:05.1]} 29... Qh7 {[%clk 0:01:01.9]} 30. Be1 {[%clk 0:01:46.3]} 30... Rf7
{[%clk 0:00:54.4]} 31. Rc7 {[%clk 0:01:38.6]} 31... Rb7 {[%clk 0:00:51.4]} 32.
Rxb7 {[%clk 0:01:38.1]} 32... Rxb7 {[%clk 0:00:51.2]} 33. Qc8 {[%clk 0:01:38.8]}
33... Rf7 {[%clk 0:00:45.8]} 34. Qe6 {[%clk 0:01:37]} 34... Qh5 {[%clk
0:00:42.7]} 35. Rf2 {[%clk 0:01:34.7]} 35... Kg7 {[%clk 0:00:41.8]} 36. Qg4
{[%clk 0:01:33.4]} 36... Qh7 {[%clk 0:00:36.9]} 37. Rc2 {[%clk 0:01:33.2]} 37...
Be7 {[%clk 0:00:35.4]} 38. Rc7 {[%clk 0:01:30.9]} 38... Qh6 {[%clk 0:00:32.3]}
39. h5 {[%clk 0:01:25.4]} 39... Qxh5 {[%clk 0:00:24.5]} 40. Qxh5 {[%clk
0:01:25.7]} 40... gxh5 {[%clk 0:00:25.2]} 41. Rc6 {[%clk 0:01:26.3]} 41... Kf8
{[%clk 0:00:17]} 42. Rxb6 {[%clk 0:01:23.1]} 42... Ke8 {[%clk 0:00:17.2]} 43.
Bb4 {[%clk 0:01:20.2]} 43... Rg7+ {[%clk 0:00:15.1]} 44. Kh3 {[%clk 0:01:16.3]}
44... h4 {[%clk 0:00:13.3]} 45. Bxd6 {[%clk 0:01:09.9]} 45... Rg3+ {[%clk
0:00:13.3]} 46. Kh2 {[%clk 0:01:10.2]} 46... Rxf3 {[%clk 0:00:11.6]} 47. Bxe7
{[%clk 0:01:09.4]} 47... Kxe7 {[%clk 0:00:11.8]} 48. Re6+ {[%clk 0:01:09.4]}
48... Kd7 {[%clk 0:00:12.3]} 49. Rxe5 {[%clk 0:01:09.4]} 49... Rxd3 {[%clk
0:00:12.5]} 50. Rh5 {[%clk 0:01:08.4]} 50... Re3 {[%clk 0:00:10.2]} 51. b6
{[%clk 0:00:55.4]} 51... d3 {[%clk 0:00:10]} 52. b7 {[%clk 0:00:54.5]} 52...
Re2+ {[%clk 0:00:10.4]} 53. Kh3 {[%clk 0:00:52.3]} 53... Rb2 {[%clk 0:00:11]}
54. e5 {[%clk 0:00:45.5]} 54... d2 {[%clk 0:00:10.3]} 55. Rh7+ {[%clk 0:00:44]}
55... Kd8 {[%clk 0:00:09.7]} 56. b8=Q+ {[%clk 0:00:19.9]} 56... Rxb8 {[%clk
0:00:09.1]} 57. Rh8+ {[%clk 0:00:18.4]} 57... Kc7 {[%clk 0:00:08.6]} 58. d6+
{[%clk 0:00:19]} 58... Kb7 {[%clk 0:00:09]} 59. Rh7+ {[%clk 0:00:18.9]} 59...
Kc6 {[%clk 0:00:08.5]} 60. Rc7+ {[%clk 0:00:13.5]} 60... Kd5 {[%clk 0:00:08.2]}
61. d7 {[%clk 0:00:14.4]} 61... d1=Q {[%clk 0:00:07.5]} 0-1

[Event "Early-Titled-Tuesday-Blitz-March-05-2024"]
[Site "Chess.com"]
[Date "2024.03.05"]
[Round "8"]
[White "Coach_Istvanovszki"]
[Black "santosalberto1987"]
[Result "1-0"]
[WhiteElo "2461"]
[BlackElo "2539"]
[TimeControl "180+1"]
[EndTime "9:31:02 PST"]
[Termination "Coach_Istvanovszki won by resignation"]

1. d4 {[%clk 0:02:13.5]} 1... Nf6 {[%clk 0:02:46.2]} 2. Nc3 {[%clk 0:01:46]}
2... d5 {[%clk 0:02:40.3]} 3. Bf4 {[%clk 0:01:46.5]} 3... e6 {[%clk 0:02:37]} 4.
Nb5 {[%clk 0:01:46.5]} 4... Bb4+ {[%clk 0:02:36.9]} 5. c3 {[%clk 0:01:46.4]}
5... Ba5 {[%clk 0:02:37.4]} 6. a4 {[%clk 0:01:46.5]} 6... Bd7 {[%clk 0:01:59]}
7. b4 {[%clk 0:01:45.6]} 7... Bb6 {[%clk 0:01:59]} 8. e3 {[%clk 0:01:40]} 8...
Bxb5 {[%clk 0:01:59]} 9. Bxb5+ {[%clk 0:01:39.5]} 9... c6 {[%clk 0:01:58.5]} 10.
Bd3 {[%clk 0:01:39]} 10... Bc7 {[%clk 0:01:57.7]} 11. Qf3 {[%clk 0:01:37.7]}
11... Nbd7 {[%clk 0:01:49.2]} 12. Ne2 {[%clk 0:01:28.4]} 12... Bxf4 {[%clk
0:01:46.6]} 13. Qxf4 {[%clk 0:01:27]} 13... Qe7 {[%clk 0:01:43.6]} 14. O-O
{[%clk 0:01:25.9]} 14... e5 {[%clk 0:01:41]} 15. dxe5 {[%clk 0:01:23.2]} 15...
Qxe5 {[%clk 0:01:40.9]} 16. Nd4 {[%clk 0:01:18.8]} 16... Qxf4 {[%clk 0:01:33.7]}
17. exf4 {[%clk 0:01:19.7]} 17... O-O {[%clk 0:01:33.7]} 18. Rfe1 {[%clk
0:01:19.8]} 18... Rfe8 {[%clk 0:01:30.1]} 19. f3 {[%clk 0:01:19.6]} 19... Rxe1+
{[%clk 0:01:24.3]} 20. Rxe1 {[%clk 0:01:19]} 20... Re8 {[%clk 0:01:24.8]} 21.
Rxe8+ {[%clk 0:01:17.7]} 21... Nxe8 {[%clk 0:01:25.7]} 22. Kf2 {[%clk
0:01:17.4]} 22... Nd6 {[%clk 0:01:25.1]} 23. Ke3 {[%clk 0:01:17.6]} 23... Kf8
{[%clk 0:01:20.5]} 24. a5 {[%clk 0:01:16.8]} 24... a6 {[%clk 0:01:08.8]} 25. Nb3
{[%clk 0:01:13.6]} 25... Ke7 {[%clk 0:01:07.3]} 26. Kd4 {[%clk 0:01:14.2]} 26...
g6 {[%clk 0:00:44.6]} 27. Nc5 {[%clk 0:01:12.6]} 27... Nf8 {[%clk 0:00:44.9]}
28. g4 {[%clk 0:01:10.7]} 28... h6 {[%clk 0:00:41.7]} 29. h4 {[%clk 0:01:10.4]}
29... Kd8 {[%clk 0:00:39.9]} 30. Ke5 {[%clk 0:01:08.3]} 30... Ke7 {[%clk
0:00:40.1]} 31. g5 {[%clk 0:01:04.6]} 31... h5 {[%clk 0:00:39.2]} 32. f5 {[%clk
0:01:02.7]} 32... gxf5 {[%clk 0:00:37.9]} 33. Bxf5 {[%clk 0:01:03.3]} 33... Nc4+
{[%clk 0:00:33]} 34. Kd4 {[%clk 0:01:02.6]} 34... Nd6 {[%clk 0:00:33.9]} 35. Bd3
{[%clk 0:01:01.2]} 35... Ng6 {[%clk 0:00:31.2]} 36. Be2 {[%clk 0:00:36.8]} 36...
Nxh4 {[%clk 0:00:29.6]} 37. f4 {[%clk 0:00:37.3]} 37... Nhf5+ {[%clk 0:00:29.2]}
38. Ke5 {[%clk 0:00:37.9]} 38... h4 {[%clk 0:00:28.4]} 39. Nxb7 {[%clk
0:00:37.9]} 39... Nxb7 {[%clk 0:00:14.9]} 40. Kxf5 {[%clk 0:00:37.3]} 40... h3
{[%clk 0:00:15]} 41. Kg4 {[%clk 0:00:36.8]} 41... h2 {[%clk 0:00:15.1]} 42. Bf3
{[%clk 0:00:37.5]} 42... Nd6 {[%clk 0:00:15.7]} 43. Kg3 {[%clk 0:00:36.6]} 43...
Nb5 {[%clk 0:00:16.1]} 44. Kxh2 {[%clk 0:00:30.6]} 44... Nxc3 {[%clk 0:00:16.5]}
45. Kg3 {[%clk 0:00:30.9]} 45... Kd6 {[%clk 0:00:16.3]} 46. f5 {[%clk
0:00:30.6]} 46... Ke5 {[%clk 0:00:15]} 47. Kg4 {[%clk 0:00:31.2]} 47... Nb5
{[%clk 0:00:14]} 48. g6 {[%clk 0:00:29.7]} 48... fxg6 {[%clk 0:00:14]} 49. fxg6
{[%clk 0:00:30.6]} 49... Kf6 {[%clk 0:00:14.5]} 50. Kh5 {[%clk 0:00:31.3]} 50...
Kg7 {[%clk 0:00:13.5]} 51. Kg5 {[%clk 0:00:31.9]} 51... Nd4 {[%clk 0:00:13.7]}
52. Bg4 {[%clk 0:00:32.2]} 52... Nc2 {[%clk 0:00:13.3]} 53. Bc8 {[%clk
0:00:32.5]} 53... Nxb4 {[%clk 0:00:13.5]} 54. Kf5 {[%clk 0:00:32.4]} 54... c5
{[%clk 0:00:13]} 55. Bb7 {[%clk 0:00:31.9]} 55... d4 {[%clk 0:00:12.5]} 56. Ke5
{[%clk 0:00:30.2]} 56... Kxg6 {[%clk 0:00:12.7]} 57. Kd6 {[%clk 0:00:30.7]}
57... c4 {[%clk 0:00:12.9]} 58. Kc5 {[%clk 0:00:30.8]} 58... c3 {[%clk
0:00:11.5]} 59. Kxb4 {[%clk 0:00:29.2]} 59... Kf5 {[%clk 0:00:12.1]} 60. Bxa6
{[%clk 0:00:26.7]} 60... Ke4 {[%clk 0:00:11.1]} 61. Kb3 {[%clk 0:00:23.2]} 61...
Kf3 {[%clk 0:00:10.9]} 62. Bd3 {[%clk 0:00:21.8]} 62... Ke3 {[%clk 0:00:11.1]}
63. Kc2 {[%clk 0:00:22.2]} 1-0

[Event "Early-Titled-Tuesday-Blitz-March-05-2024"]
[Site "Chess.com"]
[Date "2024.03.05"]
[Round "8"]
[White "Matols"]
[Black "Kumi29"]
[Result "0-1"]
[WhiteElo "2384"]
[BlackElo "2600"]
[TimeControl "180+1"]
[EndTime "9:31:04 PST"]
[Termination "Kumi29 won on time"]

1. d4 {[%clk 0:03:00.9]} 1... e6 {[%clk 0:02:57.5]} 2. c4 {[%clk 0:03:00.9]}
2... b6 {[%clk 0:02:57.2]} 3. g3 {[%clk 0:02:58.4]} 3... Bb7 {[%clk 0:02:57.1]}
4. Nf3 {[%clk 0:02:59]} 4... f5 {[%clk 0:02:57.5]} 5. Bg2 {[%clk 0:02:58.6]}
5... Nf6 {[%clk 0:02:58.1]} 6. O-O {[%clk 0:02:55.5]} 6... Be7 {[%clk
0:02:55.8]} 7. Nc3 {[%clk 0:02:53]} 7... d5 {[%clk 0:02:52.9]} 8. cxd5 {[%clk
0:02:50]} 8... exd5 {[%clk 0:02:52.7]} 9. Qa4+ {[%clk 0:02:45.4]} 9... c6 {[%clk
0:02:46.7]} 10. Ne5 {[%clk 0:02:44.1]} 10... O-O {[%clk 0:02:42.3]} 11. Bf4
{[%clk 0:02:32.1]} 11... Ne4 {[%clk 0:02:37.2]} 12. Rac1 {[%clk 0:02:20.1]}
12... g5 {[%clk 0:02:28.9]} 13. Nxe4 {[%clk 0:02:03.5]} 13... dxe4 {[%clk
0:02:07.1]} 14. Be3 {[%clk 0:01:53.1]} 14... f4 {[%clk 0:02:03.1]} 15. Bxe4
{[%clk 0:01:45.1]} 15... fxe3 {[%clk 0:02:00.2]} 16. Qb3+ {[%clk 0:01:38.6]}
16... Kg7 {[%clk 0:01:56]} 17. Qxe3 {[%clk 0:01:34.6]} 17... Nd7 {[%clk
0:01:34.3]} 18. Nxc6 {[%clk 0:01:32.5]} 18... Bxc6 {[%clk 0:01:32.2]} 19. Bxc6
{[%clk 0:01:33.4]} 19... Rc8 {[%clk 0:01:31.5]} 20. Bg2 {[%clk 0:01:16.6]} 20...
Kh8 {[%clk 0:01:24.1]} 21. Rxc8 {[%clk 0:01:14.1]} 21... Qxc8 {[%clk 0:01:24.7]}
22. Qxe7 {[%clk 0:01:14]} 22... Nf6 {[%clk 0:01:25.2]} 23. d5 {[%clk 0:01:10.7]}
23... g4 {[%clk 0:01:19.9]} 24. d6 {[%clk 0:01:08.1]} 24... Nd7 {[%clk
0:01:20.1]} 25. Be4 {[%clk 0:00:57.5]} 25... Nf6 {[%clk 0:01:15.6]} 26. Bd3
{[%clk 0:00:52.7]} 26... Qd8 {[%clk 0:01:14]} 27. Qe5 {[%clk 0:00:37.9]} 27...
Re8 {[%clk 0:01:12.1]} 28. Qd4 {[%clk 0:00:35.5]} 28... Re6 {[%clk 0:01:09.5]}
29. Rc1 {[%clk 0:00:24.4]} 29... Rxd6 {[%clk 0:01:09.1]} 30. Qe5 {[%clk
0:00:24]} 30... Rd5 {[%clk 0:01:06.1]} 31. Qe6 {[%clk 0:00:18.3]} 31... Rd6
{[%clk 0:01:02.5]} 32. Qf7 {[%clk 0:00:16.1]} 32... Rd7 {[%clk 0:01:00]} 33. Qc4
{[%clk 0:00:14.7]} 33... Qe7 {[%clk 0:00:56.4]} 34. Qc8+ {[%clk 0:00:13.5]}
34... Kg7 {[%clk 0:00:52.8]} 35. Qc3 {[%clk 0:00:13.7]} 35... h5 {[%clk
0:00:49.2]} 36. Qd2 {[%clk 0:00:10.1]} 36... Qe5 {[%clk 0:00:47.4]} 37. Qf4
{[%clk 0:00:09.1]} 37... Qxf4 {[%clk 0:00:44.6]} 38. gxf4 {[%clk 0:00:10]} 38...
Nd5 {[%clk 0:00:45.2]} 39. f5 {[%clk 0:00:09.8]} 39... Nf4 {[%clk 0:00:43.4]}
40. Rc3 {[%clk 0:00:09.3]} 40... Kf6 {[%clk 0:00:39.9]} 41. Kf1 {[%clk
0:00:06.5]} 41... h4 {[%clk 0:00:38.6]} 42. Ke1 {[%clk 0:00:05.1]} 42... Kg5
{[%clk 0:00:27.8]} 43. Kd2 {[%clk 0:00:04.3]} 43... h3 {[%clk 0:00:24.4]} 44.
Rc6 {[%clk 0:00:03.9]} 44... Nxd3 {[%clk 0:00:22.9]} 45. exd3 {[%clk 0:00:03.8]}
45... Kxf5 {[%clk 0:00:23.6]} 46. Rh6 {[%clk 0:00:03.1]} 46... Kf4 {[%clk
0:00:23.7]} 47. Rf6+ {[%clk 0:00:02.9]} 47... Kg5 {[%clk 0:00:23.1]} 48. Rf8
{[%clk 0:00:03.6]} 48... Rc7 {[%clk 0:00:19.9]} 49. d4 {[%clk 0:00:02.9]} 49...
Rd7 {[%clk 0:00:19.4]} 50. Kd3 {[%clk 0:00:03.4]} 50... Rd6 {[%clk 0:00:19.5]}
51. Ke4 {[%clk 0:00:03.6]} 51... Re6+ {[%clk 0:00:19.6]} 52. Kd3 {[%clk
0:00:03.2]} 52... Rd6 {[%clk 0:00:19.8]} 53. b3 {[%clk 0:00:03.1]} 53... a5
{[%clk 0:00:19.6]} 54. f4+ {[%clk 0:00:02.5]} 54... Kh5 {[%clk 0:00:13.8]} 55.
Rh8+ {[%clk 0:00:01.8]} 55... Rh6 {[%clk 0:00:11.3]} 0-1

[Event "Early-Titled-Tuesday-Blitz-March-05-2024"]
[Site "Chess.com"]
[Date "2024.03.05"]
[Round "8"]
[White "ContrVersia"]
[Black "Goryachkina"]
[Result "1/2-1/2"]
[WhiteElo "2860"]
[BlackElo "2694"]
[TimeControl "180+1"]
[EndTime "9:31:11 PST"]
[Termination "Game drawn by repetition"]

1. d4 {[%clk 0:02:57.2]} 1... Nf6 {[%clk 0:02:59.5]} 2. c4 {[%clk 0:02:57.1]}
2... e6 {[%clk 0:03:00]} 3. Nf3 {[%clk 0:02:57.5]} 3... d5 {[%clk 0:02:59.8]} 4.
g3 {[%clk 0:02:58]} 4... c5 {[%clk 0:02:55.1]} 5. cxd5 {[%clk 0:02:57.7]} 5...
cxd4 {[%clk 0:02:54.9]} 6. dxe6 {[%clk 0:02:50.4]} 6... Bxe6 {[%clk 0:02:53.5]}
7. Qxd4 {[%clk 0:02:41]} 7... Nc6 {[%clk 0:02:53.5]} 8. Qxd8+ {[%clk 0:02:40.9]}
8... Rxd8 {[%clk 0:02:54.2]} 9. a3 {[%clk 0:02:41.8]} 9... Bd5 {[%clk
0:02:17.1]} 10. Be3 {[%clk 0:02:41.1]} 10... Ng4 {[%clk 0:01:57.4]} 11. Nc3
{[%clk 0:02:40.9]} 11... Nxe3 {[%clk 0:01:52.5]} 12. fxe3 {[%clk 0:02:41.8]}
12... Bb3 {[%clk 0:01:50.5]} 13. Nd2 {[%clk 0:02:29.8]} 13... Be6 {[%clk
0:01:47.2]} 14. Nde4 {[%clk 0:02:22.7]} 14... Be7 {[%clk 0:01:41.2]} 15. Bg2
{[%clk 0:02:22.5]} 15... O-O {[%clk 0:01:36.3]} 16. Rd1 {[%clk 0:02:22.1]} 16...
Ne5 {[%clk 0:01:34.5]} 17. Rf1 {[%clk 0:01:50.9]} 17... Nc4 {[%clk 0:01:30.5]}
18. Rf3 {[%clk 0:01:12.9]} 18... b6 {[%clk 0:01:03.3]} 19. Rxd8 {[%clk
0:01:08.5]} 19... Rxd8 {[%clk 0:01:03.1]} 20. Nd1 {[%clk 0:01:08.3]} 20... Bd5
{[%clk 0:00:43.4]} 21. Rf5 {[%clk 0:01:00]} 21... Bxe4 {[%clk 0:00:39.5]} 22.
Bxe4 {[%clk 0:01:00.9]} 22... Rxd1+ {[%clk 0:00:39.6]} 23. Kxd1 {[%clk
0:01:01.8]} 23... Nxe3+ {[%clk 0:00:39.5]} 24. Kd2 {[%clk 0:01:01.8]} 24... Nxf5
{[%clk 0:00:39.5]} 25. Bxf5 {[%clk 0:01:02.7]} 25... Bf6 {[%clk 0:00:38.9]} 26.
Kc2 {[%clk 0:01:02.4]} 26... Bd4 {[%clk 0:00:38.1]} 27. b3 {[%clk 0:00:54.5]}
27... a5 {[%clk 0:00:38]} 28. Kd3 {[%clk 0:00:54.3]} 28... Bc5 {[%clk
0:00:38.3]} 29. Kc4 {[%clk 0:00:51.6]} 29... Bxa3 {[%clk 0:00:37.4]} 30. g4
{[%clk 0:00:44]} 30... g6 {[%clk 0:00:36.2]} 31. Be4 {[%clk 0:00:43.6]} 31...
Kg7 {[%clk 0:00:36.2]} 32. Bd5 {[%clk 0:00:39.2]} 32... Kf6 {[%clk 0:00:34.8]}
33. Kd4 {[%clk 0:00:38.6]} 33... Bc5+ {[%clk 0:00:31.9]} 34. Ke4 {[%clk
0:00:38.4]} 34... Ke7 {[%clk 0:00:31.3]} 35. h4 {[%clk 0:00:34.8]} 35... Bf2
{[%clk 0:00:23.5]} 36. h5 {[%clk 0:00:34.6]} 36... Kf6 {[%clk 0:00:21.1]} 37.
Kf3 {[%clk 0:00:33.4]} 37... Bc5 {[%clk 0:00:20.7]} 38. e4 {[%clk 0:00:33.8]}
38... Bd4 {[%clk 0:00:16]} 39. Kf4 {[%clk 0:00:31.2]} 39... Be5+ {[%clk
0:00:14.3]} 40. Kf3 {[%clk 0:00:31.5]} 40... Kg7 {[%clk 0:00:14.8]} 41. Bc4
{[%clk 0:00:30]} 41... f6 {[%clk 0:00:14.5]} 42. Bb5 {[%clk 0:00:27.5]} 42...
Kh6 {[%clk 0:00:14.6]} 43. hxg6 {[%clk 0:00:27.1]} 43... hxg6 {[%clk 0:00:15.5]}
44. Be8 {[%clk 0:00:27.5]} 44... Kg7 {[%clk 0:00:15.8]} 45. Ke2 {[%clk
0:00:27.7]} 45... g5 {[%clk 0:00:13]} 46. Kd3 {[%clk 0:00:27.9]} 46... Kf8
{[%clk 0:00:13.4]} 47. Bb5 {[%clk 0:00:27.8]} 47... Ke7 {[%clk 0:00:14]} 48. Kc4
{[%clk 0:00:28.4]} 48... Kd6 {[%clk 0:00:14.6]} 49. Be8 {[%clk 0:00:26.1]} 49...
Bg3 {[%clk 0:00:12.9]} 50. Kb5 {[%clk 0:00:26.4]} 50... Bf2 {[%clk 0:00:12.6]}
51. Kc4 {[%clk 0:00:23.5]} 51... Ke5 {[%clk 0:00:12.7]} 52. Bg6 {[%clk
0:00:23.4]} 52... Kf4 {[%clk 0:00:11.7]} 53. Bf5 {[%clk 0:00:23.9]} 53... Bg1
{[%clk 0:00:11.9]} 54. Kb5 {[%clk 0:00:23.3]} 54... Bf2 {[%clk 0:00:11.8]} 55.
Kc4 {[%clk 0:00:23.5]} 55... Ke5 {[%clk 0:00:10.8]} 56. Bg6 {[%clk 0:00:22.9]}
56... Kd6 {[%clk 0:00:10.1]} 57. Bh7 {[%clk 0:00:21.9]} 57... Ke5 {[%clk
0:00:09.8]} 58. Kb5 {[%clk 0:00:20.4]} 58... Bg1 {[%clk 0:00:10.1]} 59. Kc4
{[%clk 0:00:19.5]} 59... Kf4 {[%clk 0:00:10.2]} 60. Bf5 {[%clk 0:00:19.1]} 60...
Ke5 {[%clk 0:00:10.6]} 61. Bh7 {[%clk 0:00:17.1]} 61... Bf2 {[%clk 0:00:08.2]}
62. Kd3 {[%clk 0:00:16.6]} 62... Bg1 {[%clk 0:00:08.6]} 63. Kc4 {[%clk
0:00:16.7]} 1/2-1/2

[Event "Early-Titled-Tuesday-Blitz-March-05-2024"]
[Site "Chess.com"]
[Date "2024.03.05"]
[Round "8"]
[White "averageFM"]
[Black "JoliyRoger"]
[Result "1-0"]
[WhiteElo "2604"]
[BlackElo "2420"]
[TimeControl "180+1"]
[EndTime "9:31:11 PST"]
[Termination "averageFM won on time"]

1. d4 {[%clk 0:03:00.9]} 1... Nf6 {[%clk 0:02:53.3]} 2. Nc3 {[%clk 0:03:00.1]}
2... d5 {[%clk 0:02:51.1]} 3. e4 {[%clk 0:03:00.2]} 3... Nxe4 {[%clk 0:02:38]}
4. Nxe4 {[%clk 0:02:59.7]} 4... dxe4 {[%clk 0:02:38.7]} 5. Be3 {[%clk
0:03:00.6]} 5... Nd7 {[%clk 0:02:18.9]} 6. f3 {[%clk 0:02:59.3]} 6... exf3
{[%clk 0:02:14.4]} 7. Nxf3 {[%clk 0:02:58.6]} 7... Nf6 {[%clk 0:02:09.2]} 8. Bc4
{[%clk 0:02:58.5]} 8... Bf5 {[%clk 0:02:09.7]} 9. Qe2 {[%clk 0:02:57.7]} 9... e6
{[%clk 0:02:10.4]} 10. O-O-O {[%clk 0:02:54]} 10... c6 {[%clk 0:01:52.4]} 11.
Ne5 {[%clk 0:02:53.2]} 11... Bd6 {[%clk 0:01:47]} 12. Rhf1 {[%clk 0:02:52.4]}
12... Bxe5 {[%clk 0:01:34.1]} 13. dxe5 {[%clk 0:02:51.1]} 13... Nd5 {[%clk
0:01:34.8]} 14. g4 {[%clk 0:02:44.8]} 14... Bg6 {[%clk 0:01:32]} 15. Bc5 {[%clk
0:02:43.8]} 15... Qa5 {[%clk 0:01:21.7]} 16. Bd6 {[%clk 0:02:40.3]} 16... Qb6
{[%clk 0:01:06]} 17. a3 {[%clk 0:02:12.2]} 17... Qe3+ {[%clk 0:01:03.8]} 18. Qd2
{[%clk 0:02:07.9]} 18... Qxd2+ {[%clk 0:01:00.3]} 19. Kxd2 {[%clk 0:02:07.2]}
19... Nb6 {[%clk 0:00:49.7]} 20. Bd3 {[%clk 0:02:05.9]} 20... Bxd3 {[%clk
0:00:28.1]} 21. cxd3 {[%clk 0:02:02.5]} 21... Rd8 {[%clk 0:00:25.1]} 22. Ke3
{[%clk 0:01:47.4]} 22... Rd7 {[%clk 0:00:25.1]} 23. Ke4 {[%clk 0:01:45.1]} 23...
Nc8 {[%clk 0:00:25.2]} 24. Bc5 {[%clk 0:01:44.5]} 24... b6 {[%clk 0:00:25.6]}
25. Be3 {[%clk 0:01:43.3]} 25... O-O {[%clk 0:00:22.1]} 26. h4 {[%clk
0:01:39.8]} 26... Rd5 {[%clk 0:00:19.9]} 27. h5 {[%clk 0:01:37.6]} 27... Rfd8
{[%clk 0:00:13.2]} 28. d4 {[%clk 0:01:36.3]} 28... Ne7 {[%clk 0:00:12]} 29. Bg5
{[%clk 0:01:35.4]} 29... R8d7 {[%clk 0:00:10.1]} 30. h6 {[%clk 0:01:35.2]} 30...
g6 {[%clk 0:00:07.8]} 31. b4 {[%clk 0:01:18.2]} 31... Nc8 {[%clk 0:00:07.2]} 32.
Be3 {[%clk 0:01:06.9]} 32... a6 {[%clk 0:00:07.4]} 33. Rc1 {[%clk 0:01:06.7]}
33... Na7 {[%clk 0:00:08]} 34. a4 {[%clk 0:01:04.4]} 34... Kf8 {[%clk
0:00:07.6]} 35. Rf6 {[%clk 0:00:58.4]} 35... Ke8 {[%clk 0:00:07.7]} 36. Rf2
{[%clk 0:00:56.1]} 36... Kd8 {[%clk 0:00:08.2]} 37. Bg5+ {[%clk 0:00:49.2]}
37... Ke8 {[%clk 0:00:08.1]} 38. Be3 {[%clk 0:00:49]} 38... Rc7 {[%clk
0:00:08.6]} 39. Kf4 {[%clk 0:00:45.8]} 39... Nc8 {[%clk 0:00:06.8]} 40. Rfc2
{[%clk 0:00:44.4]} 40... Na7 {[%clk 0:00:06.6]} 41. Kg5 {[%clk 0:00:44.3]} 41...
Ke7 {[%clk 0:00:06.7]} 42. Rf1 {[%clk 0:00:42.3]} 42... b5 {[%clk 0:00:05.6]}
43. a5 {[%clk 0:00:40.8]} 43... Ke8 {[%clk 0:00:05]} 44. Kf6 {[%clk 0:00:38.8]}
44... Kf8 {[%clk 0:00:04.8]} 45. Rfc1 {[%clk 0:00:38.2]} 45... Kg8 {[%clk
0:00:01.4]} 46. Kg5 {[%clk 0:00:36.3]} 46... Kf8 {[%clk 0:00:01.9]} 47. Kf4
{[%clk 0:00:36.5]} 47... Ke7 {[%clk 0:00:02.5]} 48. Ke4 {[%clk 0:00:36.8]} 48...
Ke8 {[%clk 0:00:02.7]} 49. Rc5 {[%clk 0:00:31.4]} 49... Kd7 {[%clk 0:00:02.3]}
50. Kf4 {[%clk 0:00:30.8]} 50... Ke7 {[%clk 0:00:02.2]} 51. Kg5 {[%clk
0:00:30.4]} 51... Rcd7 {[%clk 0:00:02.3]} 52. R5c2 {[%clk 0:00:20.9]} 52... Ke8
{[%clk 0:00:01.8]} 53. Rf2 {[%clk 0:00:20.6]} 53... Rc7 {[%clk 0:00:01.4]} 54.
Kf6 {[%clk 0:00:20.1]} 54... Kf8 {[%clk 0:00:01.7]} 55. Rcf1 {[%clk 0:00:19.2]}
55... Rcd7 {[%clk 0:00:01.7]} 56. Kg5 {[%clk 0:00:19.4]} 56... Ke8 {[%clk
0:00:01.4]} 57. Rf6 {[%clk 0:00:19.3]} 1-0